bitfinex-derivatives/quotes_BTCF0:USTF0_20250822
["timestamp","ask_amount","ask_price","bid_price","bid_amount"]
[1755897260176,0.08625913,116980.0,116970.0,0.42976]
[1755897260380,0.10229913,116980.0,116970.0,0.42976]
[1755897261177,0.10429913,116980.0,116970.0,0.43076]
[1755897262677,0.50560201,116980.0,116970.0,0.43076]
[1755897263084,0.12964913,116980.0,116970.0,0.43076]
[1755897263489,0.10429913,116980.0,116970.0,0.43076]
[1755897264089,0.14701566,116980.0,116970.0,0.43076]
[1755897264885,0.12166566,116980.0,116970.0,0.43076]
[1755897266488,0.07319566,116980.0,116970.0,0.43076]
[1755897266688,0.04063653,116980.0,116970.0,1.19286288]
[1755897267583,0.05082653,116980.0,116970.0,1.19286288]
[1755897269291,0.04063653,116980.0,116970.0,1.19286288]
[1755897269491,0.01936653,116980.0,116970.0,1.19286288]
[1755897269986,0.08361653,116980.0,116970.0,1.19286288]
[1755897270379,0.54093941,116980.0,116970.0,0.79156]
[1755897270884,0.79093941,116980.0,116970.0,0.79156]
[1755897271590,0.38963653,116980.0,116970.0,0.79156]
[1755897271792,0.79093941,116980.0,116970.0,0.79156]
[1755897271986,0.38963653,116980.0,116970.0,0.79156]
[1755897272187,0.79093941,116980.0,116970.0,0.79156]
[1755897272790,0.38963653,116980.0,116970.0,0.79156]
[1755897272991,0.36435653,116980.0,116970.0,0.79156]
[1755897273388,0.36435653,116980.0,116970.0,0.83206288]
[1755897273990,0.36435653,116980.0,116970.0,0.43076]
[1755897279098,0.38963653,116980.0,116970.0,0.43076]
[1755897280498,0.36435653,116980.0,116970.0,0.43076]
[1755897281995,0.36435653,116980.0,116970.0,0.83206288]
[1755897282799,0.38963653,116980.0,116970.0,0.43076]
[1755897285598,0.79093941,116980.0,116970.0,0.42976]
[1755897285798,1.70469941,116980.0,116970.0,0.001]
[1755897288101,1.30339653,116980.0,116970.0,0.001]
[1755897288297,1.70469941,116980.0,116970.0,0.001]
[1755897288996,2.06549941,116980.0,116970.0,0.001]
[1755897290700,2.15098981,116980.0,116970.0,0.001]
[1755897290898,0.1331877,116970.0,116960.0,0.02564]
[1755897291098,0.62443711,116970.0,116960.0,0.02564]
[1755897291505,0.62443711,116970.0,116960.0,0.04248]
[1755897291994,0.62443711,116970.0,116960.0,0.02564]
[1755897292195,0.62543711,116970.0,116960.0,0.02764]
[1755897292395,0.87643711,116970.0,116960.0,0.02764]
[1755897292701,0.87643711,116970.0,116960.0,0.002]
[1755897294904,0.87643711,116970.0,116960.0,0.02764]
[1755897295105,0.85907058,116970.0,116960.0,0.02764]
[1755897295300,0.87653504,116970.0,116960.0,0.02764]
[1755897296008,0.87653504,116970.0,116960.0,0.04448]
[1755897296208,0.87653504,116970.0,116960.0,0.05432]
[1755897298405,0.47523216,116970.0,116960.0,0.05752]
[1755897298709,0.47523216,116970.0,116960.0,0.07429]
[1755897300007,0.47523216,116970.0,116960.0,0.43509]
[1755897300406,0.87653504,116970.0,116960.0,0.43309]
[1755897300604,0.87653504,116970.0,116960.0,0.41512]
[1755897301504,0.87653504,116970.0,116960.0,0.43309]
[1755897301697,0.07004,116960.0,116950.0,0.38511]
[1755897301898,1.44077734,116960.0,116950.0,0.38511]
[1755897302104,1.44077734,116960.0,116950.0,0.3608]
[1755897302604,2.94077734,116960.0,116950.0,0.38511]
[1755897302805,2.94077734,116960.0,116950.0,0.41106]
[1755897303103,2.53947446,116960.0,116950.0,0.43223]
[1755897303302,2.94077734,116960.0,116950.0,0.43623]
[1755897303706,2.94077734,116960.0,116950.0,0.42583]
[1755897303908,2.94077734,116960.0,116950.0,0.40118]
[1755897304110,2.94077734,116960.0,116950.0,0.38511]
[1755897304311,2.94077734,116960.0,116950.0,0.3608]
[1755897304908,2.94177734,116960.0,116950.0,0.3628]
[1755897307002,2.94177734,116960.0,116950.0,0.002]
[1755897307713,2.54047446,116960.0,116950.0,0.02631]
[1755897308012,2.94177734,116960.0,116950.0,0.02631]
[1755897308406,2.94177734,116960.0,116950.0,0.002]
[1755897308813,2.54047446,116960.0,116950.0,0.002]
[1755897309003,2.94177734,116960.0,116950.0,0.002]
[1755897310912,3.59308022,116960.0,116950.0,0.002]
[1755897311214,0.11779,116950.0,116940.0,0.02431]
[1755897311514,0.53655734,116950.0,116940.0,0.02431]
[1755897312015,0.13525446,116950.0,116930.0,0.43485]
[1755897312208,1.03083,116940.0,116930.0,0.48401]
[1755897312511,1.04529446,116940.0,116930.0,0.48401]
[1755897312713,1.04429446,116940.0,116930.0,0.48401]
[1755897312915,1.05198026,116940.0,116930.0,0.48401]
[1755897313110,1.04429446,116940.0,116930.0,0.48401]
[1755897313905,0.06202446,116940.0,116930.0,0.48601]
[1755897314112,0.03084,116940.0,116930.0,0.88731288]
[1755897314814,0.06243,116940.0,116930.0,0.88731288]
[1755897315114,0.07995702,116940.0,116930.0,0.88731288]
[1755897315310,0.11158702,116940.0,116930.0,0.48601]
[1755897315516,0.11158702,116940.0,116930.0,0.88731288]
[1755897316317,0.09406,116940.0,116930.0,0.88731288]
[1755897316512,0.16199227,116940.0,116930.0,0.88731288]
[1755897317115,0.16199227,116940.0,116930.0,0.48601]
[1755897317313,0.16199227,116940.0,116930.0,0.88731288]
[1755897318215,0.16199227,116940.0,116930.0,0.48601]
[1755897318418,0.16199227,116940.0,116930.0,0.88731288]
[1755897319423,0.16199227,116940.0,116930.0,0.48601]
[1755897319626,0.16199227,116940.0,116930.0,0.88731288]
[1755897320910,0.16199227,116940.0,116930.0,0.48601]
[1755897321122,0.16199227,116940.0,116930.0,0.88731288]
[1755897322621,0.09063227,116940.0,116930.0,0.48601]
[1755897322822,0.09063227,116940.0,116930.0,0.88731288]
[1755897323121,0.13136227,116940.0,116930.0,0.48601]
[1755897323322,0.09977227,116940.0,116930.0,0.88731288]
[1755897323617,0.14889043,116940.0,116930.0,0.88731288]
[1755897323821,0.14889043,116940.0,116930.0,0.48601]
[1755897324020,0.16261043,116940.0,116930.0,0.48601]
[1755897324222,0.17952043,116940.0,116930.0,0.88731288]
[1755897324618,0.17952043,116940.0,116930.0,0.48601]
[1755897324820,0.17952043,116940.0,116930.0,0.88731288]
[1755897326019,0.17952043,116940.0,116930.0,0.48601]
[1755897326224,0.17952043,116940.0,116930.0,0.88731288]
[1755897326617,0.17952043,116940.0,116930.0,0.48601]
[1755897327024,0.17952043,116940.0,116930.0,0.88731288]
[1755897327525,0.17952043,116940.0,116930.0,0.48601]
[1755897327724,0.17952043,116940.0,116930.0,0.88731288]
[1755897328618,0.14887043,116940.0,116930.0,0.88731288]
[1755897329025,0.11730043,116940.0,116930.0,0.88731288]
[1755897329822,0.14887043,116940.0,116930.0,0.48601]
[1755897330129,0.14887043,116940.0,116930.0,0.88731288]
[1755897330426,0.09560043,116940.0,116930.0,0.93337438]
[1755897330627,0.09560043,116940.0,116930.0,0.5320715]
[1755897330823,0.09560043,116940.0,116930.0,0.93337438]
[1755897331031,0.06893227,116940.0,116930.0,1.18337438]
[1755897331528,0.06893227,116940.0,116930.0,1.26890128]
[1755897333231,0.06893227,116940.0,116930.0,1.18337438]
[1755897334127,0.10072227,116940.0,116930.0,0.7820715]
[1755897334334,0.13229227,116940.0,116930.0,2.09545438]
[1755897334542,0.14638227,116940.0,116930.0,2.09545438]
[1755897334739,0.14638227,116940.0,116930.0,1.6941515]
[1755897334942,0.10072227,116940.0,116930.0,2.36455438]
[1755897335241,0.06893227,116940.0,116930.0,2.36455438]
[1755897335942,0.08661246,116940.0,116930.0,2.36455438]
[1755897337441,0.10873246,116940.0,116930.0,2.36455438]
[1755897337642,0.11840246,116940.0,116930.0,2.36455438]
[1755897338545,0.09628246,116940.0,116930.0,2.36455438]
[1755897338737,0.08661246,116940.0,116930.0,2.36455438]
[1755897338939,0.08661246,116940.0,116930.0,2.36423438]
[1755897339340,0.09105227,116940.0,116930.0,2.36423438]
[1755897339640,0.11851968,116940.0,116930.0,2.36423438]
[1755897339840,0.15008968,116940.0,116930.0,2.36423438]
[1755897340045,0.11851968,116940.0,116930.0,2.36423438]
[1755897340248,0.11851968,116940.0,116930.0,1.45247438]
[1755897340546,0.15008968,116940.0,116930.0,2.36415438]
[1755897340938,0.15008968,116940.0,116930.0,1.9628515]
[1755897341138,0.15008968,116940.0,116930.0,2.36415438]
[1755897341448,0.18068968,116940.0,116930.0,2.36411438]
[1755897341747,0.18068968,116940.0,116930.0,0.7662015]
[1755897341748,0.60529256,116940.0,116930.0,0.7662015]
[1755897342045,0.60529256,116940.0,116930.0,0.75304]
[1755897342245,0.20398968,116940.0,116930.0,0.75304]
[1755897343735,0.60529256,116940.0,116930.0,0.75304]
[1755897344447,0.20398968,116940.0,116930.0,0.75304]
[1755897344751,0.60529256,116940.0,116930.0,0.75304]
[1755897346649,0.60529256,116940.0,116930.0,0.48394]
[1755897347047,0.60529256,116940.0,116930.0,0.45104]
[1755897347347,0.20398968,116940.0,116930.0,0.48394]
[1755897347548,0.60529256,116940.0,116930.0,0.48394]
[1755897347741,0.60529256,116940.0,116930.0,0.45104]
[1755897347942,0.60529256,116940.0,116930.0,0.43627]
[1755897348143,0.60529256,116940.0,116930.0,0.05226]
[1755897348545,0.60529256,116940.0,116930.0,0.07481]
[1755897349346,0.60529256,116940.0,116930.0,0.05226]
[1755897349541,0.00967,116930.0,116910.0,0.3608]
[1755897349748,1.40630288,116920.0,116910.0,0.11973]
[1755897350047,1.44740029,116920.0,116910.0,0.04674]
[1755897350247,1.44740029,116920.0,116910.0,0.10562]
[1755897350448,1.42410029,116920.0,116910.0,0.11973]
[1755897350648,1.02279741,116920.0,116910.0,0.48053]
[1755897350849,1.02279741,116920.0,116910.0,0.48453]
[1755897351050,1.04609741,116920.0,116910.0,0.48453]
[1755897351246,1.04609741,116920.0,116910.0,0.48053]
[1755897351446,1.04609741,116920.0,116910.0,0.48353]
[1755897352649,1.44740029,116920.0,116910.0,0.48353]
[1755897352850,1.44840029,116920.0,116910.0,0.48353]
[1755897353446,1.04709741,116920.0,116910.0,0.48353]
[1755897354044,1.44840029,116920.0,116910.0,0.48353]
[1755897354754,1.02379741,116920.0,116910.0,0.48353]
[1755897354950,0.11275741,116920.0,116910.0,0.88483288]
[1755897355249,0.08215741,116920.0,116910.0,0.48353]
[1755897355556,0.09624741,116920.0,116910.0,0.48353]
[1755897355747,0.09496,116920.0,116910.0,0.88483288]
[1755897355946,0.09496,116920.0,116910.0,0.48353]
[1755897356240,0.09496,116920.0,116910.0,0.88483288]
[1755897357654,0.09496,116920.0,116910.0,0.48353]
[1755897357856,0.09496,116920.0,116910.0,0.88483288]
[1755897358655,0.09496,116920.0,116910.0,0.48353]
[1755897359948,0.09496,116920.0,116910.0,0.90249559]
[1755897360253,0.001,116920.0,116910.0,2.14823689]
[1755897360447,0.08156227,116940.0,116910.0,2.07703689]
[1755897360653,0.16366502,116940.0,116930.0,0.88050288]
[1755897361053,0.11839502,116940.0,116930.0,0.88050288]
[1755897361747,0.08632502,116940.0,116930.0,0.88050288]
[1755897362151,0.10901502,116940.0,116930.0,0.88050288]
[1755897362751,0.08632502,116940.0,116930.0,1.24130288]
[1755897362948,0.11839502,116940.0,116930.0,1.24130288]
[1755897363253,0.11939502,116940.0,116930.0,0.84]
[1755897363453,0.15103502,116940.0,116930.0,0.84]
[1755897363855,0.15003502,116940.0,116930.0,0.84]
[1755897364055,0.15103502,116940.0,116930.0,0.841]
[1755897367156,0.16466502,116940.0,116930.0,0.841]
[1755897370752,0.16466502,116940.0,116930.0,1.75032]
[1755897371661,0.16466502,116940.0,116930.0,2.15162288]
[1755897372157,0.13302502,116940.0,116930.0,2.15162288]
[1755897372356,0.09670502,116940.0,116930.0,2.15162288]
[1755897372756,0.08732502,116940.0,116930.0,2.15162288]
[1755897373259,0.08732502,116940.0,116930.0,1.75032]
[1755897373456,0.08732502,116940.0,116930.0,2.15162288]
[1755897373656,1.51363,116960.0,116930.0,2.50432085]
[1755897373859,1.53686,116960.0,116950.0,0.40021]
[1755897374163,1.5685,116960.0,116950.0,0.40021]
[1755897374364,0.06893,116960.0,116950.0,0.80151288]
[1755897374569,0.03207,116960.0,116950.0,0.80151288]
[1755897374768,0.03207,116960.0,116950.0,1.71019288]
[1755897375267,0.06671,116960.0,116950.0,1.30889]
[1755897375453,0.01238,116960.0,116950.0,1.71019288]
[1755897375659,0.003,116960.0,116950.0,2.67560488]
[1755897375858,0.003,116960.0,116950.0,2.32099288]
[1755897376063,0.004,116960.0,116950.0,2.32099288]
[1755897376257,0.0728372,116960.0,116950.0,2.32099288]
[1755897376457,0.004,116960.0,116950.0,2.40650488]
[1755897376858,0.004,116960.0,116950.0,2.40750488]
[1755897381370,0.03607,116960.0,116950.0,2.40750488]
[1755897381565,0.10457,116960.0,116950.0,2.40750488]
[1755897381765,0.12104,116960.0,116950.0,1.01201]
[1755897381965,0.12104,116960.0,116950.0,2.32119288]
[1755897382673,0.12104,116960.0,116950.0,2.32095288]
[1755897383181,0.12104,116960.0,116950.0,1.66965]
[1755897383375,0.52234288,116960.0,116950.0,0.76201]
[1755897383572,0.52234288,116960.0,116950.0,1.66949]
[1755897384174,0.12104,116960.0,116950.0,1.66949]
[1755897385268,0.03607,116960.0,116950.0,2.07079288]
[1755897385674,0.06771,116960.0,116950.0,1.66949]
[1755897385877,0.08134,116960.0,116950.0,2.07079288]
[1755897386072,0.12104,116960.0,116950.0,2.07079288]
[1755897388075,0.12104,116960.0,116950.0,1.66949]
[1755897388671,0.13933962,116960.0,116950.0,1.66949]
[1755897390780,0.13933962,116960.0,116950.0,1.66845]
[1755897391983,0.7925325,116960.0,116950.0,0.7226]
[1755897392171,0.7925325,116960.0,116950.0,0.0388]
[1755897392377,0.7925325,116960.0,116950.0,0.001]
[1755897392378,1.19383538,116960.0,116950.0,0.001]
[1755897392584,1.1533325,116960.0,116950.0,0.001]
[1755897392982,0.11818,116940.0,116930.0,0.3786]
[1755897393180,0.13647962,116940.0,116930.0,0.4012]
[1755897393482,0.13647962,116940.0,116930.0,1.30724]
[1755897395279,0.13747962,116940.0,116930.0,1.30724]
[1755897396084,0.13747962,116940.0,116930.0,1.30708]
[1755897397385,0.13747962,116940.0,116930.0,0.4012]
[1755897397586,0.13747962,116940.0,116930.0,1.30668]
[1755897399383,0.13747962,116940.0,116930.0,0.4012]
[1755897399690,0.7887825,116940.0,116930.0,0.3996]
[1755897399991,0.7887825,116940.0,116930.0,0.4002]
[1755897400178,0.7887825,116940.0,116930.0,0.0404]
[1755897400382,0.38747962,116940.0,116930.0,0.0404]
[1755897400883,0.7887825,116940.0,116930.0,0.0404]
[1755897402186,1.6938625,116940.0,116930.0,0.0394]
[1755897403983,1.6938625,116940.0,116930.0,0.0378]
[1755897404184,1.6223225,116940.0,116920.0,0.6535]
[1755897404389,0.51948288,116930.0,116920.0,0.4012]
[1755897404584,0.5377825,116930.0,116920.0,0.4012]
[1755897404785,0.13647962,116930.0,116920.0,0.4012]
[1755897405697,0.13647962,116930.0,116920.0,0.4022]
[1755897405992,0.5377825,116930.0,116920.0,0.4022]
[1755897407493,0.5387825,116930.0,116920.0,0.4022]
[1755897409087,0.13747962,116930.0,116920.0,0.4022]
[1755897409488,0.14558843,116930.0,116920.0,0.4022]
[1755897409796,0.13747962,116930.0,116920.0,0.4022]
[1755897411692,0.14562598,116930.0,116920.0,0.4022]
[1755897420705,0.02849962,116930.0,116920.0,0.4022]
[1755897420895,0.01929962,116930.0,116920.0,0.80350288]
[1755897421098,0.04931962,116930.0,116920.0,0.80350288]
[1755897421501,0.12158962,116930.0,116920.0,0.80350288]
[1755897421701,0.13696962,116930.0,116920.0,0.4022]
[1755897423504,0.5382725,116930.0,116920.0,0.4022]
[1755897425994,0.5382725,116930.0,116920.0,0.0414]
[1755897427103,0.13696962,116930.0,116920.0,0.0414]
[1755897427301,0.5382725,116930.0,116920.0,0.0414]
[1755897428212,0.13696962,116930.0,116920.0,0.0414]
[1755897428509,0.5382725,116930.0,116920.0,0.0414]
[1755897429204,0.5382725,116930.0,116920.0,0.0162]
[1755897429702,0.5382725,116930.0,116920.0,0.04104]
[1755897429901,0.5382725,116930.0,116920.0,0.04264]
[1755897430204,0.5382725,116930.0,116920.0,0.04364]
[1755897431606,0.5382725,116930.0,116920.0,0.0162]
[1755897433198,1.1490725,116930.0,116920.0,0.001]
[1755897435406,0.74776962,116930.0,116920.0,0.001]
[1755897435808,1.1490725,116930.0,116920.0,0.001]
[1755897436106,0.74776962,116930.0,116920.0,0.001]
[1755897436307,1.1490725,116930.0,116920.0,0.001]
[1755897437810,0.74776962,116930.0,116920.0,0.001]
[1755897438012,1.1490725,116930.0,116920.0,0.001]
[1755897439308,0.7882725,116930.0,116920.0,0.001]
[1755897439513,1.1490725,116930.0,116920.0,0.001]
[1755897440806,0.7882725,116930.0,116920.0,0.001]
[1755897441212,1.1490725,116930.0,116920.0,0.001]
[1755897441413,0.7882725,116930.0,116920.0,0.001]
[1755897441608,0.38696962,116930.0,116920.0,0.04342]
[1755897441814,0.38696962,116930.0,116920.0,0.04442]
[1755897442002,1.03564962,116930.0,116920.0,0.04442]
[1755897442205,1.4369525,116930.0,116920.0,0.01698]
[1755897443218,1.03564962,116930.0,116920.0,0.01698]
[1755897444013,1.4369525,116930.0,116920.0,0.01698]
[1755897445215,1.03564962,116930.0,116920.0,0.01698]
[1755897445714,1.4369525,116930.0,116920.0,0.01698]
[1755897447514,1.4369525,116930.0,116920.0,0.001]
[1755897451609,1.03564962,116930.0,116920.0,0.001]
[1755897452016,1.4369525,116930.0,116920.0,0.001]
[1755897453015,1.7977525,116930.0,116920.0,0.001]
[1755897456917,2.0477525,116930.0,116920.0,0.001]
[1755897457118,2.0477525,116930.0,116910.0,0.01766271]
[1755897457315,0.51755288,116920.0,116910.0,0.01766271]
[1755897457518,0.5358525,116920.0,116910.0,0.01766271]
[1755897457721,2.0358525,116920.0,116910.0,0.01766271]
[1755897459019,2.0357659,116920.0,116910.0,0.01766271]
[1755897459408,2.0357659,116920.0,116910.0,0.01966271]
[1755897459815,2.0367659,116920.0,116910.0,0.01966271]
[1755897460517,1.63546302,116920.0,116910.0,0.03943271]
[1755897460722,2.53090302,116920.0,116910.0,0.82719559]
[1755897460923,2.53090302,116920.0,116910.0,0.42589271]
[1755897463222,2.53090302,116920.0,116910.0,0.40823]
[1755897463424,1.63546302,116920.0,116910.0,0.42569708]
[1755897464226,2.0367659,116920.0,116910.0,0.42569708]
[1755897464424,2.0367659,116920.0,116910.0,0.42369708]
[1755897466424,1.63546302,116920.0,116910.0,0.42369708]
[1755897467424,1.63546302,116920.0,116910.0,0.42569708]
[1755897472527,0.04078302,116920.0,116910.0,0.82699996]
[1755897472733,0.04078302,116920.0,116910.0,1.07699996]
[1755897472933,0.01921302,116920.0,116910.0,1.07699996]
[1755897473238,0.05048302,116920.0,116910.0,1.07699996]
[1755897473527,0.10635302,116920.0,116910.0,1.07699996]
[1755897473732,0.11999302,116920.0,116910.0,1.07699996]
[1755897474131,0.11999302,116920.0,116910.0,1.97043996]
[1755897474333,0.11999302,116920.0,116910.0,1.97023996]
[1755897474530,0.11999302,116920.0,116910.0,1.97019996]
[1755897475335,0.05048302,116920.0,116910.0,1.97019996]
[1755897475534,0.05048302,116920.0,116910.0,2.01639128]
[1755897475734,0.09644302,116920.0,116910.0,2.01639128]
[1755897476035,0.06412302,116920.0,116910.0,1.12319128]
[1755897476235,0.10314302,116920.0,116910.0,2.01611128]
[1755897476435,0.10314302,116920.0,116910.0,2.10165288]
[1755897476645,0.001,116920.0,116910.0,2.10165288]
[1755897476934,0.01908062,116920.0,116910.0,2.10165288]
[1755897477329,0.001,116920.0,116910.0,2.10165288]
[1755897478737,0.001,116920.0,116910.0,1.65415868]
[1755897478935,0.001,116920.0,116910.0,2.05546156]
[1755897479342,0.001,116920.0,116910.0,2.10161848]
[1755897479936,0.001,116920.0,116910.0,2.46241848]
[1755897480543,0.001,116920.0,116910.0,2.01495868]
[1755897480746,0.001,116920.0,116910.0,2.41626156]
[1755897480938,0.001,116920.0,116910.0,2.01495868]
[1755897481441,0.001,116920.0,116910.0,2.41626156]
[1755897481641,0.001,116920.0,116910.0,2.46240839]
[1755897482136,0.001,116920.0,116910.0,2.41626156]
[1755897482342,0.001,116920.0,116910.0,2.46240838]
[1755897485145,0.03072,116940.0,116930.0,0.1307869]
[1755897485344,0.0487803,116940.0,116930.0,2.05960288]
[1755897485534,0.1352803,116940.0,116930.0,2.05960288]
[1755897485737,0.1352803,116940.0,116930.0,1.33800288]
[1755897485938,0.1352803,116940.0,116930.0,2.05960288]
[1755897486543,0.11722,116940.0,116930.0,2.05960288]
[1755897486743,0.11722,116940.0,116930.0,1.16816288]
[1755897486948,0.11722,116940.0,116930.0,2.05936288]
[1755897487135,0.11822,116940.0,116930.0,2.05936288]
[1755897487444,0.11822,116940.0,116930.0,1.65806]
[1755897487646,0.11822,116940.0,116930.0,1.16816288]
[1755897487843,0.11822,116940.0,116930.0,2.06024288]
[1755897487844,0.11922,116940.0,116930.0,2.06024288]
[1755897488148,0.11922,116940.0,116930.0,1.65894]
[1755897489545,0.11922,116940.0,116930.0,2.06024288]
[1755897491651,0.11922,116940.0,116930.0,1.16916288]
[1755897491850,0.11922,116940.0,116930.0,2.05988288]
[1755897492048,0.11922,116940.0,116930.0,0.76786]
[1755897494251,0.13725713,116940.0,116930.0,0.76786]
[1755897497652,0.53856001,116940.0,116930.0,0.76786]
[1755897497848,0.13725713,116940.0,116930.0,0.76786]
[1755897500553,0.13725713,116940.0,116930.0,1.03696]
[1755897500752,0.11922,116940.0,116930.0,1.03696]
[1755897501353,0.13726952,116940.0,116930.0,1.03696]
[1755897502946,0.13726952,116940.0,116930.0,0.31536]
[1755897503152,0.5385724,116940.0,116930.0,0.31536]
[1755897504655,0.13726952,116940.0,116930.0,0.31536]
[1755897504852,0.13726952,116940.0,116930.0,0.67616]
[1755897506251,0.59004429,116940.0,116930.0,1.12893477]
[1755897506557,0.59004429,116940.0,116930.0,0.40706]
[1755897506758,0.59004429,116940.0,116930.0,0.85983477]
[1755897507560,0.59004429,116940.0,116930.0,0.04626]
[1755897507747,0.13726952,116940.0,116930.0,0.04626]
[1755897508153,0.59004429,116940.0,116930.0,0.04626]
[1755897508956,0.13726952,116940.0,116930.0,0.49903477]
[1755897509156,0.59004429,116940.0,116930.0,0.04626]
[1755897509858,0.59004429,116940.0,116930.0,0.85983477]
[1755897510554,0.13726952,116940.0,116930.0,0.85983477]
[1755897510766,0.02004952,116940.0,116930.0,0.85983477]
[1755897511353,0.02004952,116940.0,116930.0,0.40706]
[1755897511558,0.02004952,116940.0,116930.0,0.85983477]
[1755897511759,0.02004952,116940.0,116930.0,0.40706]
[1755897511953,0.04117952,116940.0,116930.0,0.40706]
[1755897512161,0.04117952,116940.0,116930.0,0.85983477]
[1755897512458,0.02004952,116940.0,116930.0,1.07855085]
[1755897513360,0.02004952,116940.0,116930.0,1.12469767]
[1755897514555,0.02004952,116940.0,116930.0,0.72230682]
[1755897514848,0.02004952,116940.0,116930.0,1.12469767]
[1755897515655,0.04117952,116940.0,116930.0,1.12469767]
[1755897516763,0.05055952,116940.0,116930.0,0.72230682]
[1755897516965,0.05055952,116940.0,116930.0,2.01117767]
[1755897517464,0.05055952,116940.0,116930.0,1.60878682]
[1755897517961,0.05055952,116940.0,116930.0,2.01117767]
[1755897518158,0.05055952,116940.0,116930.0,1.60878682]
[1755897518560,0.05055952,116940.0,116930.0,2.01117767]
[1755897520555,0.02942952,116940.0,116930.0,2.01117767]
[1755897520751,0.05055952,116940.0,116930.0,2.01117767]
[1755897521663,0.02942952,116940.0,116930.0,2.01117767]
[1755897522354,0.02004952,116940.0,116930.0,1.60878682]
[1755897522556,0.02004952,116940.0,116930.0,1.69431412]
[1755897522760,0.02004952,116940.0,116930.0,2.09670497]
[1755897523362,0.02004952,116940.0,116930.0,2.34670497]
[1755897524363,0.46942699,116960.0,116940.0,0.02497]
[1755897524562,0.08342,116960.0,116950.0,0.40441]
[1755897524758,0.1256076,116970.0,116950.0,1.69220085]
[1755897524959,0.1848876,116970.0,116960.0,0.40441]
[1755897525859,0.19602507,116970.0,116960.0,0.40441]
[1755897526458,0.19702507,116970.0,116960.0,0.40441]
[1755897527361,0.19902507,116970.0,116960.0,0.40541]
[1755897527661,0.1173776,116970.0,116960.0,0.82523379]
[1755897527874,0.0726976,116970.0,116960.0,0.82523379]
[1755897528061,0.0726976,116970.0,116960.0,0.42284294]
[1755897528466,0.0962476,116970.0,116960.0,0.82523379]
[1755897528666,0.1267576,116970.0,116960.0,0.83326833]
[1755897529259,0.0726976,116970.0,116960.0,0.83326833]
[1755897530460,0.0726976,116970.0,116960.0,0.43087748]
[1755897530853,0.0726976,116970.0,116960.0,0.83326833]
[1755897531259,0.0726976,116970.0,116960.0,0.43087748]
[1755897531959,0.0726976,116970.0,116960.0,0.83326833]
[1755897532166,0.0726976,116970.0,116960.0,0.43087748]
[1755897532359,0.0726976,116970.0,116960.0,0.83326833]
[1755897535163,0.0938276,116970.0,116960.0,0.42284294]
[1755897535467,0.1908876,116970.0,116960.0,0.42284294]
[1755897535659,0.1908876,116970.0,116960.0,1.28387294]
[1755897536066,0.1908876,116970.0,116960.0,1.30684294]
[1755897536660,0.1325076,116970.0,116960.0,1.30684294]
[1755897536866,0.20862609,116970.0,116960.0,1.30684294]
[1755897537769,0.20862609,116970.0,116960.0,1.70923379]
[1755897538168,0.20862609,116970.0,116960.0,1.30684294]
[1755897538369,0.20862609,116970.0,116960.0,1.70923379]
[1755897538576,0.09043609,116970.0,116960.0,1.79473919]
[1755897538774,0.14503609,116970.0,116960.0,1.70923379]
[1755897539370,0.20823609,116970.0,116960.0,0.82523379]
[1755897539673,0.20823609,116970.0,116960.0,1.28335294]
[1755897539866,0.20823609,116970.0,116960.0,1.30626294]
[1755897541773,0.20823609,116970.0,116960.0,1.70865379]
[1755897541774,0.17392609,116970.0,116960.0,1.70865379]
[1755897541968,0.1425176,116970.0,116960.0,1.57536294]
[1755897542268,0.1904976,116970.0,116960.0,1.57536294]
[1755897542462,0.20823918,116970.0,116960.0,1.57536294]
[1755897542974,0.20823918,116970.0,116960.0,1.97775379]
[1755897543174,0.16025918,116970.0,116960.0,1.57536294]
[1755897543378,0.16025918,116970.0,116960.0,1.97775379]
[1755897543673,0.19456918,116970.0,116960.0,1.97775379]
[1755897543877,0.20823918,116970.0,116960.0,1.97775379]
[1755897544376,0.20823918,116970.0,116960.0,1.97727379]
[1755897544671,0.13589918,116970.0,116960.0,2.06277919]
[1755897544872,0.09043918,116970.0,116960.0,1.66038834]
[1755897545077,0.13589918,116970.0,116960.0,1.66038834]
[1755897545275,0.14503918,116970.0,116960.0,1.66038834]
[1755897545470,0.14503918,116970.0,116960.0,2.06277919]
[1755897545780,0.02374158,116970.0,116960.0,2.06277919]
[1755897546566,0.04722158,116970.0,116960.0,1.66038834]
[1755897546772,0.07834158,116970.0,116960.0,1.97727379]
[1755897547282,0.12632158,116970.0,116960.0,1.97703379]
[1755897547482,0.14154158,116970.0,116960.0,1.97703379]
[1755897549979,0.09356158,116970.0,116960.0,1.97703379]
[1755897550572,0.12787158,116970.0,116960.0,1.57464294]
[1755897550780,0.12787158,116970.0,116960.0,1.97703379]
[1755897551480,0.10723158,116970.0,116960.0,0.69188294]
[1755897551682,0.14154158,116970.0,116960.0,1.57416294]
[1755897552581,0.09356158,116970.0,116960.0,1.57416294]
[1755897552782,0.07834158,116970.0,116960.0,1.97655379]
[1755897553081,0.06920158,116970.0,116960.0,2.06205909]
[1755897553381,0.02374158,116970.0,116960.0,2.06205909]
[1755897553982,0.02374158,116970.0,116960.0,1.57416294]
[1755897554182,0.02374158,116970.0,116960.0,1.97655379]
[1755897554681,0.06920158,116970.0,116960.0,1.97655379]
[1755897555381,0.07834158,116970.0,116960.0,1.57416294]
[1755897555682,0.11265158,116970.0,116960.0,1.97655379]
[1755897555882,0.12632158,116970.0,116960.0,1.09427379]
[1755897556180,0.14154158,116970.0,116960.0,1.57376294]
[1755897556781,0.10723158,116970.0,116960.0,1.57376294]
[1755897556988,0.07834158,116970.0,116960.0,1.57376294]
[1755897557280,0.02374158,116970.0,116960.0,2.06165909]
[1755897557481,0.02374158,116970.0,116960.0,1.70541506]
[1755897557672,0.02374158,116970.0,116960.0,2.10780591]
[1755897560786,0.02374158,116970.0,116960.0,1.70541506]
[1755897561184,0.02374158,116970.0,116960.0,2.10780591]
[1755897563383,0.06737561,116980.0,116970.0,0.0032]
[1755897563588,0.02348,116980.0,116970.0,0.76639085]
[1755897564484,0.02348,116980.0,116970.0,1.03549085]
[1755897564683,0.03148,116980.0,116970.0,1.03649085]
[1755897565690,0.09966942,116980.0,116970.0,1.03649085]
[1755897566293,0.12164942,116980.0,116970.0,1.03649085]
[1755897566486,0.12578942,116980.0,116970.0,1.03549085]
[1755897566688,0.17531942,116980.0,116970.0,1.03549085]
[1755897567082,0.001,116980.0,116970.0,1.10188865]
[1755897567291,0.05496,116990.0,116980.0,0.0032]
[1755897567481,0.05496,116990.0,116980.0,1.64727085]